bitfinex/quotes_SOLUSD_20250915
["timestamp","ask_amount","ask_price","bid_price","bid_amount"]
[1757933826365,132.53,237.0,236.98,0.66]
[1757933827259,132.53,237.0,236.99,4.21958732]
[1757933827463,132.53,237.0,236.99,4.87958732]
[1757933827656,132.53,237.0,236.99,30.87958732]
[1757933835463,0.03,237.0,236.99,30.87958732]
[1757933835666,0.03,237.0,236.99,31.02174889]
[1757933835847,0.03,237.03,236.99,41.5707172]
[1757933836052,0.03,237.03,237.02,26.0]
[1757933836569,0.03,237.03,237.02,26.66]
[1757933836773,0.03,237.03,237.02,0.66]
[1757933837073,0.03,237.03,237.02,4.87905324]
[1757933839693,0.03,237.03,237.02,30.87905324]
[1757933842561,0.03,237.03,237.02,30.21905324]
[1757933842876,0.03,237.03,237.02,30.87905324]
[1757933843175,0.03,237.03,237.02,31.02121481]
[1757933846474,0.03,237.03,237.02,30.36121481]
[1757933846778,0.7,237.03,237.02,30.21905324]
[1757933846956,0.7,237.03,237.02,4.21905324]
[1757933847454,0.7,237.03,237.01,2.56547986]
[1757933847665,0.67,237.02,237.0,6.78477058]
[1757933847965,0.67,237.01,237.0,6.78477058]
[1757933849475,0.67,237.01,237.0,4.21929072]
[1757933849976,0.03,237.03,237.0,4.21929072]
[1757933850176,0.67,237.02,237.0,4.21929072]
[1757933850362,0.67,237.01,237.0,4.21929072]
[1757933850564,0.67,237.01,236.99,26.0]
[1757933850768,0.67,237.0,236.99,26.0]
[1757933851075,0.67,237.0,236.98,6.78512287]
[1757933851284,0.67,236.99,236.98,6.78512287]
[1757933852055,0.03,237.03,237.01,2.56547986]
[1757933852274,0.03,237.03,236.98,2.56547986]
[1757933852465,0.03,237.03,236.97,4.21993065]
[1757933852466,0.67,237.02,236.97,6.78541051]
[1757933852672,0.67,237.01,236.97,6.78541051]
[1757933852984,0.03,237.03,236.97,6.78541051]
[1757933852985,0.03,237.03,236.98,0.71]
[1757933853361,0.03,237.03,237.0,26.0]
[1757933853561,0.67,237.02,237.0,26.0]
[1757933853870,0.03,237.03,236.97,4.21993065]
[1757933853871,0.67,237.01,236.97,4.21993065]
[1757933854063,0.67,237.01,237.0,1.64305692]
[1757933854469,0.67,237.01,236.99,1.64305692]
[1757933854670,0.67,237.0,236.98,1.64305692]
[1757933854877,0.67,236.99,236.98,1.64305692]
[1757933855662,0.67,236.99,236.95,5.86318816]
[1757933855865,0.67,237.02,236.95,4.22013124]
[1757933856064,0.03,237.03,236.97,26.0]
[1757933856578,0.03,237.03,236.98,26.71]
[1757933856772,0.03,237.03,236.99,14.76855563]
[1757933856957,0.03,237.03,236.99,15.47855563]
[1757933857161,0.03,237.03,237.0,7.28222768]
[1757933857886,0.03,237.03,237.0,0.71]
[1757933858180,0.03,237.03,236.99,14.76855563]
[1757933858885,0.03,237.03,236.99,30.92958732]
[1757933859680,0.03,237.03,236.99,4.92958732]
[1757933860366,0.03,237.03,236.99,15.47855563]
[1757933860865,0.03,237.03,236.99,4.92958732]
[1757933861279,0.03,237.03,237.0,0.71]
[1757933863281,0.03,237.03,236.99,14.76855563]
[1757933863472,0.03,237.03,236.99,15.47855563]
[1757933863985,0.03,237.03,236.99,15.53855563]
[1757933864168,0.03,237.03,237.0,0.71]
[1757933865490,0.03,237.03,237.01,4.21923125]
[1757933866173,0.67,237.05,237.01,4.21923125]
[1757933866368,0.67,237.04,237.01,4.21923125]
[1757933866769,0.67,237.03,237.0,4.21939251]
[1757933867498,0.67,237.05,237.0,4.21939251]
[1757933867799,0.67,237.04,237.0,4.21939251]
[1757933868180,0.67,237.04,237.0,4.92939251]
[1757933868366,13.59559401,237.07,237.01,4.21915898]
[1757933868570,0.67,237.03,237.01,4.21915898]
[1757933868771,130.06,237.06,237.01,4.21915898]
[1757933868970,0.67,237.05,237.01,4.21915898]
[1757933869178,0.67,237.04,237.01,4.21915898]
[1757933870297,130.06,237.06,236.99,0.06]
[1757933870298,0.68,237.03,236.99,0.06]
[1757933870491,0.68,237.03,236.99,1.70305692]
[1757933870672,0.68,237.02,236.99,0.06]
[1757933872980,0.68,237.02,236.99,1.70305692]
[1757933873181,0.68,237.01,236.99,1.70305692]
[1757933873392,0.68,237.01,236.99,0.06]
[1757933873693,0.68,237.01,236.99,1.70305692]
[1757933874895,0.68,237.01,236.99,0.06]
[1757933875209,0.68,237.01,236.99,1.70305692]
[1757933875406,0.68,237.0,236.99,1.70305692]
[1757933875701,0.68,237.0,236.99,0.06]
[1757933875902,0.68,237.0,236.99,1.70305692]
[1757933877388,2.84389615,237.08,236.99,2.37305692]
[1757933877389,0.68,237.05,236.99,2.37305692]
[1757933877588,0.68,237.07,237.0,0.67]
[1757933877891,130.06,237.06,237.0,0.67]
[1757933878888,130.06,237.06,237.02,1.64305692]
[1757933879089,130.74,237.06,237.02,1.64305692]
[1757933880196,130.74,237.06,237.01,4.21923125]
[1757933880500,130.74,237.06,237.02,1.64305692]
[1757933880977,130.06,237.06,237.03,0.67]
[1757933881182,130.06,237.06,237.02,1.64305692]
[1757933881396,130.06,237.06,237.03,0.67]
[1757933881601,130.06,237.06,237.02,1.64305692]
[1757933881813,130.06,237.06,237.03,0.71]
[1757933882115,130.06,237.06,237.04,0.71]
[1757933882301,130.06,237.06,237.05,4.92851929]
[1757933885315,130.06,237.06,237.03,4.21887524]
[1757933885719,0.72,237.05,237.03,26.0]
[1757933886405,130.78,237.04,237.02,1.64305692]
[1757933886712,0.72,237.03,237.02,1.64305692]
[1757933887517,130.06,237.04,237.02,1.64305692]
[1757933887686,130.06,237.04,237.01,0.06]
[1757933887687,130.78,237.04,237.01,0.06]
[1757933888487,130.06,237.04,237.01,4.98914093]
[1757933889697,130.06,237.04,237.01,6.63219785]
[1757933889900,130.06,237.04,237.01,5.92219785]
[1757933890300,130.78,237.04,237.01,5.92219785]
[1757933890706,130.78,237.04,237.01,4.27914093]
[1757933893798,130.78,237.04,237.02,1.64305692]
[1757933894615,130.78,237.04,237.02,5.86206267]
[1757933896200,130.06,237.04,237.02,5.86206267]
[1757933896419,130.78,237.04,237.02,5.86206267]
[1757933896718,130.78,237.04,237.02,4.21900575]
[1757933897012,130.78,237.04,237.01,0.06]
[1757933897218,130.78,237.04,237.01,4.27921601]
[1757933897618,130.78,237.04,237.01,5.92227293]
[1757933898200,0.72,237.03,237.01,0.06]
[1757933898406,0.72,237.03,237.02,1.64305692]
[1757933899214,14.31559401,237.03,237.01,0.06]
[1757933899422,13.59559401,237.02,237.01,0.06]
[1757933899921,14.31559401,237.02,237.01,0.06]
[1757933900230,14.45775558,237.02,237.01,0.06]
[1757933900602,18.67680882,237.02,237.01,0.06]
[1757933900806,22.01187733,237.02,237.01,0.06]
[1757933901004,24.85727147,237.02,237.01,0.06]
[1757933901712,23.21421455,237.02,237.01,0.06]
[1757933902128,20.36882041,237.02,237.01,0.06]
[1757933903215,23.21421455,237.02,237.01,0.06]
[1757933904033,20.36882041,237.02,237.01,0.06]
[1757933905417,16.14976717,237.02,237.01,0.06]
[1757933905906,14.45775558,237.02,237.01,0.06]
[1757933907827,18.67680882,237.02,237.01,0.06]
[1757933908035,20.31986574,237.02,237.01,0.06]
[1757933908822,18.67680882,237.02,237.01,0.06]
[1757933909033,20.31986574,237.02,237.01,0.06]
[1757933909217,18.67680882,237.02,237.01,0.06]
[1757933909829,14.45775558,237.02,237.01,0.06]
[1757933911007,18.67680882,237.02,237.01,0.06]
[1757933912016,14.45775558,237.02,237.01,0.06]
[1757933912831,18.67680882,237.02,237.01,0.06]
[1757933913414,20.31986574,237.02,237.01,0.06]
[1757933913820,23.1585064,237.02,237.01,0.06]
[1757933914337,24.85073273,237.02,237.01,0.06]
[1757933915425,23.20767581,237.02,237.01,0.06]
[1757933916238,25.77723807,237.02,237.01,0.06]
[1757933916436,23.20767581,237.02,237.01,0.06]
[1757933916843,25.77723807,237.02,237.01,0.06]
[1757933917731,39.59559401,236.97,236.96,0.06]
[1757933917940,16.30731784,236.97,236.96,0.06]
[1757933918139,21.24726129,236.97,236.96,0.06]
[1757933918519,16.30731784,236.97,236.96,0.06]
[1757933918720,17.02731784,236.97,236.96,0.06]
[1757933919031,13.73775558,236.97,236.96,0.06]
[1757933919350,18.67769903,236.97,236.96,0.06]
[1757933919639,44.67769903,236.97,236.96,0.06]
[1757933919839,40.45775558,236.97,236.96,0.06]
[1757933920044,39.73775558,236.97,236.96,0.06]
[1757933920414,40.45775558,236.97,236.96,0.06]
[1757933922219,47.24726129,236.97,236.96,0.06]
[1757933924229,43.02731784,236.97,236.96,0.06]
[1757933924427,47.24726129,236.97,236.96,0.06]
[1757933924837,44.67769903,236.97,236.96,0.06]
[1757933925344,47.24726129,236.97,236.96,0.06]
[1757933927038,21.24726129,236.97,236.96,0.06]
[1757933929525,22.93984566,236.97,236.96,0.06]
[1757933929726,22.21984566,236.97,236.96,0.06]
[1757933929949,22.21984566,236.97,236.93,0.7]
[1757933929950,26.0,236.91,236.9,0.02769243]
[1757933930156,42.57272871,236.91,236.9,0.02769243]
[1757933930341,59.59559401,236.88,236.87,0.06]
[1757933930647,62.57272871,236.88,236.87,0.06]
[1757933930825,42.57272871,236.88,236.87,0.06]
[1757933931026,62.57272871,236.88,236.87,0.06]
[1757933931447,42.57066437,236.88,236.87,0.06]
[1757933931645,46.79221114,236.88,236.87,0.06]
[1757933931846,66.79221114,236.88,236.87,0.06]
[1757933932147,70.11461672,236.88,236.87,0.06]
[1757933932343,68.97486546,236.88,236.87,0.06]
[1757933934055,65.65245988,236.88,236.87,0.06]
[1757933935340,66.35245988,236.88,236.87,0.06]
[1757933935650,46.35245988,236.88,236.87,0.06]
[1757933935838,66.35245988,236.88,236.87,0.06]
[1757933936340,69.78987107,236.88,236.87,0.06]
[1757933936544,49.08987107,236.88,236.87,0.06]
[1757933936743,69.08987107,236.88,236.87,0.06]
[1757933938049,49.08987107,236.88,236.87,0.06]
[1757933938247,69.78987107,236.88,236.87,0.06]
[1757933938447,73.8583247,236.88,236.87,0.06]
[1757933939826,53.8583247,236.88,236.87,0.06]
[1757933940045,73.8583247,236.88,236.87,0.06]
[1757933940747,53.8583247,236.88,236.87,0.06]
[1757933940926,73.8583247,236.88,236.87,0.06]
[1757933941857,53.8583247,236.88,236.87,0.72]
[1757933942147,53.8583247,236.88,236.87,0.06]
[1757933942353,73.8583247,236.88,236.87,0.06]
[1757933943046,53.8583247,236.88,236.87,0.06]
[1757933943342,73.8583247,236.88,236.87,0.06]
[1757933944145,53.8583247,236.88,236.87,0.06]
[1757933944840,15.28875154,236.88,236.87,0.72]
[1757933945355,13.59559401,236.88,236.87,0.72]
[1757933946255,17.81714078,236.88,236.87,0.72]
[1757933946657,1.16,236.85,236.84,0.2]
[1757933948658,1.16,236.85,236.84,0.86]
[1757933952063,14.75559401,236.85,236.84,0.2]
[1757933952765,17.32515627,236.85,236.84,0.2]
[1757933954053,22.20723775,236.85,236.84,0.2]
[1757933954775,22.34939932,236.85,236.84,0.2]
[1757933954967,22.34939932,236.85,236.84,1e-08]
[1757933955148,24.31664791,236.84,236.83,0.06]
[1757933955467,27.14824289,236.84,236.83,0.06]
[1757933955647,27.80824289,236.84,236.83,0.06]
[1757933956874,34.6000649,236.84,236.83,0.06]
[1757933960158,31.37050264,236.84,236.83,0.06]
[1757933960347,23.21959074,236.84,236.83,0.06]
[1757933960552,19.88741602,236.84,236.83,0.06]
[1757933960972,20.02957759,236.84,236.83,0.06]
[1757933961486,20.68957759,236.84,236.83,0.06]
[1757933961655,17.46001533,236.84,236.83,0.06]
[1757933961854,20.68957759,236.84,236.83,0.06]
[1757933963469,20.02957759,236.84,236.83,0.06]
[1757933963766,20.68957759,236.84,236.83,0.06]
[1757933963971,31.26846993,236.84,236.83,0.06]
[1757933964168,34.1020001,236.84,236.83,0.06]
[1757933965087,34.1020001,236.84,236.83,1e-08]
[1757933965260,24.31664792,236.83,236.82,0.06]
[1757933965460,33.94217838,236.83,236.82,0.06]
[1757933965768,34.60217838,236.83,236.82,0.06]
[1757933966560,36.29590945,236.83,236.82,0.06]
[1757933966971,34.60217838,236.83,236.82,0.06]
[1757933967978,34.60217838,236.83,236.82,1e-08]
[1757933968273,36.29590946,236.83,236.82,1e-08]
[1757933969183,34.60217838,236.83,236.82,1e-08]
[1757933969385,16.16515627,236.75,236.74,0.66]
[1757933971981,20.3890211,236.75,236.74,0.66]
[1757933972286,26.0,236.76,236.74,0.66]
[1757933974282,26.0,236.76,236.75,0.68]
[1757933975186,26.0,236.76,236.73,3.24956226]
[1757933975365,26.0,236.76,236.73,2.56956226]
[1757933975575,13.59559401,236.75,236.64,14.79032189]
[1757933975774,13.59559401,236.75,236.71,0.68]
[1757933976175,17.8195867,236.75,236.71,0.68]
[1757933976474,13.59559401,236.75,236.71,0.68]
[1757933976676,13.59559401,236.75,236.72,0.68]
[1757933977794,17.819471,236.75,236.7,1.64755437]
[1757933977970,17.819471,236.75,236.7,2.32755437]
[1757933978173,17.819471,236.75,236.71,0.68]
[1757933978693,21.3715121,236.75,236.69,2.32755437]
[1757933979883,13.59559401,236.73,236.68,1.64755437]
[1757933980370,13.59559401,236.73,236.68,2.32755437]
[1757933980773,13.59559401,236.73,236.69,0.68]
[1757933981188,13.59559401,236.71,236.69,0.68]
[1757933981571,13.59559401,236.71,236.67,0.68]
[1757933981772,13.59559401,236.71,236.68,1.64755437]
[1757933982479,132.5,236.7,236.68,1.64755437]
[1757933983382,132.5,236.7,236.67,2.32755437]
[1757933984071,132.5,236.7,236.67,1.64755437]
[1757933984266,132.5,236.7,236.68,1.64755437]
[1757933984467,132.5,236.7,236.68,2.32755437]
[1757933984782,132.5,236.7,236.68,1.64755437]
[1757933985475,132.5,236.7,236.69,1.64755437]
[1757933985476,146.09559401,236.7,236.69,1.64755437]
[1757933985874,146.09559401,236.7,236.68,1.64755437]
[1757933986066,14.30559401,236.69,236.66,1.64755437]
[1757933986266,14.30559401,236.69,236.63,0.06]
[1757933986267,14.30559401,236.69,236.64,1.64755437]
[1757933986474,14.30559401,236.68,236.65,1.64755437]
[1757933987486,13.59559401,236.69,236.65,1.64755437]
[1757933987686,14.30559401,236.69,236.65,1.64755437]
[1757933988280,18.53068719,236.69,236.65,1.64755437]
[1757933988595,0.71,236.68,236.65,1.64755437]
[1757933988978,0.71,236.67,236.63,0.06]
[1757933989181,18.54068719,236.69,236.64,1.64755437]
[1757933989378,0.72,236.68,236.64,1.64755437]
[1757933989579,0.72,236.67,236.64,1.64755437]
[1757933990485,4.22527844,236.68,236.64,1.64755437]
[1757933990672,14.31559401,236.69,236.64,1.64755437]
[1757933990673,13.59559401,236.69,236.65,1.64755437]
[1757933990873,14.31559401,236.69,236.66,1.64755437]
[1757933991079,18.54054622,236.69,236.66,1.64755437]
[1757933991595,18.54054622,236.69,236.65,1.64755437]
[1757933992196,17.82054622,236.69,236.65,1.64755437]
[1757933992499,0.72,236.68,236.65,1.64755437]
[1757933992698,13.59559401,236.69,236.65,1.64755437]
[1757933992878,13.59559401,236.69,236.66,1.64755437]
[1757933993202,13.59559401,236.67,236.66,1.64755437]
[1757933993791,13.59559401,236.67,236.63,0.74]
[1757933993991,13.59559401,236.67,236.65,1.64755437]
[1757933994287,13.59559401,236.67,236.63,0.74]
[1757933994487,13.59559401,236.67,236.64,1.64755437]
[1757933994897,14.31559401,236.67,236.64,1.64755437]
[1757933995103,0.72,236.66,236.63,1.70755437]
[1757933997507,0.72,236.66,236.64,1.64755437]
[1757933997883,0.72,236.66,236.63,0.06]
[1757933998083,0.72,236.66,236.64,1.64755437]
[1757933999081,132.5,236.65,236.64,1.64755437]
[1757933999813,132.5,236.65,236.63,0.06]
[1757934000105,132.5,236.65,236.64,0.68]
[1757934000294,13.59559401,236.69,236.64,0.68]
[1757934000808,13.59559401,236.69,236.65,0.68]
[1757934000983,13.59559401,236.69,236.68,1.64755437]
[1757934001503,26.0,236.68,236.67,1.64755437]
[1757934001718,26.0,236.68,236.64,0.68]
[1757934001885,26.0,236.68,236.64,0.69]
[1757934002387,0.71,236.67,236.63,0.06]
[1757934002592,0.71,236.66,236.63,0.06]
[1757934002802,0.71,236.66,236.64,1.64755437]
[1757934003006,0.71,236.65,236.63,0.06]
[1757934003386,26.71,236.69,236.68,1.64755437]
[1757934003709,0.71,236.69,236.68,1.64755437]
[1757934003908,13.59559401,236.68,236.63,0.06]
[1757934004089,13.59559401,236.66,236.63,0.06]
[1757934004486,0.71,236.65,236.63,0.06]
[1757934004913,0.71,236.64,236.63,0.06]
[1757934005287,14.30559401,236.64,236.63,0.06]
[1757934006409,13.59559401,236.64,236.63,0.06]
[1757934006617,13.59559401,236.67,236.65,1.64755437]
[1757934006786,13.59559401,236.67,236.63,4.97591797]
[1757934006988,0.71,236.7,236.64,0.69]
[1757934007314,26.0,236.67,236.63,4.28591797]
[1757934007806,26.0,236.67,236.66,1.64755437]
[1757934008013,39.59559401,236.67,236.66,1.64755437]
[1757934008208,13.59559401,236.7,236.66,1.64755437]
[1757934008511,14.30559401,236.7,236.68,1.64755437]
[1757934008710,13.59559401,236.7,236.68,1.64755437]
[1757934009011,39.59559401,236.68,236.67,1.64755437]
[1757934010011,40.30559401,236.68,236.67,1.64755437]
[1757934010206,39.59559401,236.68,236.67,1.64755437]
[1757934010710,40.30559401,236.68,236.67,1.64755437]
[1757934011006,40.30559401,236.68,236.66,1.64755437]
[1757934011311,40.30559401,236.68,236.65,1.64755437]
[1757934011513,0.71,236.67,236.65,1.64755437]
[1757934011716,0.71,236.66,236.63,0.06]
[1757934011913,13.59559401,236.65,236.63,0.06]
[1757934012303,14.30559401,236.64,236.63,0.06]
[1757934013413,18.53142227,236.64,236.63,0.06]
[1757934014830,21.37395891,236.64,236.63,0.06]
[1757934015113,21.51612048,236.64,236.63,0.06]
[1757934016316,31.85839971,236.64,236.63,1e-08]
[1757934016612,35.6399478,236.64,236.63,1e-08]
[1757934017321,37.33489896,236.64,236.63,1e-08]
[1757934017501,13.59559401,236.62,236.61,0.06]
[1757934017812,19.99098187,236.62,236.61,0.06]
[1757934018016,25.20458217,236.62,236.61,0.06]
[1757934018194,33.1171306,236.62,236.61,0.06]
[1757934018519,24.31664792,236.61,236.6,0.06]
[1757934018718,27.15918456,236.61,236.6,0.06]
[1757934018896,27.86918456,236.61,236.6,0.06]
[1757934019407,33.74310298,236.61,236.6,0.06]
[1757934019714,0.14216157,236.6,236.59,0.2]
[1757934019896,31.42002786,236.6,236.59,0.2]
[1757934020496,27.86918456,236.6,236.59,0.2]
[1757934020904,23.36558426,236.6,236.59,0.2]
[1757934021521,27.59212694,236.6,236.59,0.2]
[1757934022514,32.09572724,236.6,236.59,0.2]
[1757934024497,31.95356567,236.6,236.59,0.2]
[1757934024706,26.73996537,236.6,236.59,0.2]
[1757934025002,27.44996537,236.6,236.59,0.2]
[1757934025198,29.92968131,236.6,236.59,0.2]
[1757934027706,34.43328161,236.6,236.59,0.2]
[1757934029412,34.43328161,236.6,236.58,0.06]
[1757934029413,21.35147838,236.59,236.58,1e-08]
[1757934029727,24.03976895,236.59,236.58,1e-08]
[1757934030113,25.7349356,236.59,236.58,1e-08]
[1757934030317,25.59277403,236.59,236.58,1e-08]
[1757934030521,19.51748199,236.59,236.58,1e-08]
[1757934031316,17.82231534,236.59,236.58,1e-08]
[1757934031519,18.67447691,236.59,236.58,1e-08]
[1757934032512,20.36964357,236.59,236.58,1e-08]
[1757934032942,30.94853591,236.59,236.58,1e-08]
[1757934033121,37.3280568,236.59,236.58,1e-08]
[1757934033324,33.78387853,236.59,236.58,1e-08]
[1757934034129,65.48428852,236.59,236.53,0.06]
[1757934034319,0.14216157,236.54,236.53,0.06]
[1757934034521,14.39775558,236.54,236.53,0.06]
[1757934034717,13.59559401,236.46,236.45,0.72]
[1757934035539,13.59559401,236.46,236.45,2.36755437]
[1757934036632,26.0,236.5,236.45,2.36755437]
[1757934036633,13.59559401,236.48,236.45,2.36755437]
[1757934036934,13.59559401,236.48,236.46,0.72]
[1757934037227,4.23046904,236.5,236.49,1.64755437]
[1757934037434,26.0,236.51,236.49,0.72]
[1757934039132,26.0,236.51,236.5,0.72]
[1757934040923,3.38786574,236.56,236.53,2.57825917]
[1757934041125,13.59559401,236.55,236.53,3.29825917]
[1757934041447,43.04810339,236.56,236.53,3.29825917]
[1757934043549,39.59559401,236.56,236.53,2.57825917]
[1757934043737,13.59559401,236.59,236.54,0.72]
[1757934043921,26.0,236.57,236.56,2.57825917]
[1757934044446,13.59559401,236.6,236.56,2.57825917]
[1757934044632,26.0,236.57,236.56,2.57825917]
[1757934044942,26.0,236.57,236.52,3.29825917]
[1757934045244,30.22711391,236.57,236.53,0.72]
[1757934045850,30.22711391,236.57,236.54,2.57825917]
[1757934048143,26.0,236.57,236.55,0.72]
[1757934048642,26.0,236.57,236.54,2.57825917]
[1757934048643,26.0,236.57,236.56,0.72]
[1757934048830,26.0,236.57,236.54,2.57825917]
[1757934049035,26.0,236.57,236.54,3.27825917]
[1757934049937,26.67,236.56,236.51,2.57825917]
[1757934050140,0.67,236.56,236.51,2.57825917]
[1757934050438,0.67,236.55,236.51,2.57825917]
[1757934051522,4.89750214,236.55,236.51,2.57825917]
[1757934051717,13.59559401,236.56,236.52,0.7]
[1757934051918,26.0,236.56,236.55,2.57825917]
[1757934052731,0.03,236.57,236.55,3.27825917]
[1757934052925,26.0,236.56,236.55,3.27825917]
[1757934053518,26.0,236.56,236.55,2.57825917]
[1757934054318,26.0,236.56,236.53,4.28772738]
[1757934054523,26.0,236.56,236.55,2.57825917]
[1757934054744,30.89728731,236.56,236.53,0.06]
[1757934056330,2.84491339,236.55,236.53,0.06]
[1757934056647,2.84491339,236.55,236.54,2.57825917]
[1757934057234,26.0,236.56,236.54,2.57825917]
[1757934059352,30.22726538,236.56,236.54,2.57825917]
[1757934059654,13.59559401,236.54,236.53,0.06]
[1757934059861,16.44396112,236.54,236.53,0.06]
[1757934060146,18.27396112,236.54,236.53,0.06]
[1757934060355,30.00836711,236.54,236.53,0.06]
[1757934061033,30.00954022,236.54,236.53,0.06]
[1757934061248,44.27513423,236.54,236.53,0.06]
[1757934061459,30.00954022,236.54,236.53,0.06]
[1757934062350,4.00954022,236.54,236.53,0.71]
[1757934062553,1.16,236.54,236.53,0.71]
[1757934062744,1.16,236.54,236.53,4.93779351]
[1757934063259,1.16,236.54,236.53,0.71]
[1757934063753,1.16,236.54,236.53,0.06]
[1757934065254,19.69320878,236.54,236.53,0.06]
[1757934065450,33.75813023,236.54,236.53,0.06]
[1757934065630,37.46221708,236.54,236.53,0.06]
[1757934065836,39.59559401,236.5,236.48,0.06]
[1757934066052,16.44606757,236.49,236.48,0.06]
[1757934066254,17.15606757,236.49,236.48,0.06]
[1757934067740,21.38457617,236.49,236.48,0.06]
[1757934068674,20.67457617,236.49,236.48,0.06]
[1757934069383,16.44606757,236.49,236.48,0.06]
[1757934069678,132.5,236.52,236.48,0.71]
[1757934069887,1.16,236.54,236.48,4.93867165]
[1757934070081,1.16,236.54,236.49,0.65]
[1757934070377,1.16,236.54,236.5,0.65]
[1757934070878,5.38763658,236.54,236.5,0.65]
[1757934071555,1.16,236.54,236.48,0.06]
[1757934071755,1.16,236.54,236.49,4.22850539]
[1757934071954,1.16,236.54,236.49,4.87850539]
[1757934072569,1.16,236.54,236.5,0.65]
[1757934072756,1.16,236.54,236.49,4.22850539]
[1757934072962,1.16,236.54,236.51,0.65]
[1757934073173,1.19,236.54,236.52,0.65]
[1757934073761,1.19,236.54,236.53,0.65]
[1757934074161,1.19,236.54,236.52,4.22785519]
[1757934074459,1.19,236.54,236.52,4.87785519]
[1757934074655,1.19,236.54,236.53,0.65]
[1757934074869,1.19,236.54,236.52,4.22785519]
[1757934075056,1.19,236.54,236.53,0.65]
[1757934076057,1.19,236.54,236.53,4.87779351]
[1757934076286,1.19,236.54,236.53,4.22779351]
[1757934077560,1.19,236.54,236.53,4.87779351]
[1757934077967,1.19,236.54,236.53,4.22779351]
[1757934079207,1.19,236.54,236.51,4.87799209]
[1757934079492,1.9,236.54,236.49,4.22839963]
[1757934081583,1.9,236.54,236.52,2.57825917]
[1757934081584,19.01320878,236.54,236.52,2.57825917]
[1757934081767,13.59559401,236.53,236.48,2.63825917]
[1757934081966,13.59559401,236.49,236.48,0.06]
[1757934082169,16.44473962,236.49,236.48,0.06]
[1757934082473,17.15473962,236.49,236.48,0.06]
[1757934083788,21.38324822,236.49,236.48,0.06]
[1757934085267,17.15473962,236.49,236.48,0.06]
[1757934086190,2.84914561,236.49,236.48,0.06]
[1757934086391,16.44473962,236.53,236.48,4.93868741]
[1757934086568,13.59559401,236.53,236.48,4.93868741]
[1757934086767,14.30559401,236.53,236.48,4.93868741]
[1757934086987,14.30559401,236.53,236.48,4.28868741]
[1757934088177,1.19,236.54,236.5,2.57825917]
[1757934089389,1.9,236.54,236.5,2.57825917]
[1757934089594,0.71,236.53,236.5,2.57825917]
[1757934089770,6.12765804,236.54,236.5,2.57825917]
[1757934090592,0.71,236.53,236.5,2.57825917]
[1757934091670,0.71,236.52,236.48,0.06]
[1757934091884,0.71,236.52,236.51,2.57825917]
[1757934092285,14.30559401,236.52,236.51,2.57825917]
[1757934092677,14.30559401,236.52,236.48,2.63825917]
[1757934092678,13.59559401,236.51,236.48,2.63825917]
[1757934092878,4.2283298,236.5,236.48,2.63825917]
[1757934093083,14.30559401,236.49,236.48,2.63825917]
[1757934093286,14.30559401,236.49,236.48,0.06]
[1757934093991,16.44313208,236.52,236.5,0.06]
[1757934094492,1.19,236.54,236.5,0.06]
[1757934094794,39.59559401,236.53,236.5,0.06]
[1757934095376,39.59559401,236.53,236.5,4.28826946]
[1757934095675,26.0,236.53,236.5,4.28826946]
[1757934097296,26.71,236.53,236.5,0.06]
[1757934097695,0.71,236.52,236.5,0.06]
[1757934097894,26.0,236.53,236.5,0.78]
[1757934098102,26.0,236.53,236.5,4.28822546]